[Event "Czech Extraliga 2023-24"]
[Site "Czech Republic"]
[Date "2024.02.11"]
[Round "8.4"]
[White "Finek, Vaclav"]
[Black "Krejci, Jan"]
[Result "1/2-1/2"]
[ECO "D11"]
[WhiteElo "2416"]
[BlackElo "2530"]
[Annotator "TA"]
[PlyCount "136"]
[EventDate "2023.10.14"]
[EventCountry "CZE"]
[SourceTitle "playchess.com"]
[Source "ChessBase"]
[SourceQuality "1"]
[TimeControl "40/5400+30:1800+30"]

{[%evp 47,136,-29,-30,-28,-29,-30,-18,-18,-19,-34,-33,-24,-9,-22,-11,-10,-1,-18,-18,-9,0,0,0,-19,-14,-16,0,0,0,-7,0,-18,-19,-14,-22,-23,-32,-26,-27,-38,-20,-59,-56,-44,-27,-49,-45,-87,-85,-73,-37,-36,-20,-36,-18,-18,-8,-14,0,-8,-8,-14,0,0,0,0,0,0,0,0,0,0,0,0,0,0,0,-8,0,0,0,0,0,0,0,0,0,0,0,0,0]} 1. d4 d5 2. c4 c6 3. Nf3 Nf6 4. Qc2 g6 5. Bf4 dxc4 6. Qxc4 {D11: Slav Defence: 3 Nf3 sidelines and 3...Nf6 4 e3 Bg4.} Be6 7. Qc2 Bf5 8. Qb3 Qb6 9. Nbd2 Nbd7 {has lost popularity (9...Na6).} 10. e3 Bg7 11. Bc4 O-O 12. O-O $146 ({Predecessor:} 12. h3 Ne4 13. Rd1 Nd6 14. Bxd6 exd6 15. O-O d5 16. Bd3 Be6 17. Nb1 Qxb3 18. axb3 {½-½ Istratescu,A (2561)-Zubov,A (2607) Abu Dhabi op 26th 2019 (5)}) 12... Qxb3 13. Nxb3 Nb6 14. Rfc1 Nxc4 15. Rxc4 Be6 16. Rc2 Bxb3 17. axb3 Rfd8 18. Ra5 Rd5 19. Rxd5 Nxd5 20. Be5 f6 21. Bg3 Rd8 22. Kf1 e6 23. Ke2 Nb4 24. Rc4 Bf8 25. Nd2 Kf7 26. Ne4 Nd5 27. f3 h6 28. Rc1 g5 29. Nf2 Nb4 30. h4 Rd5 31. Ra1 a6 32. Ne4 f5 33. Nc3 Rd7 34. hxg5 hxg5 35. Be5 c5 36. dxc5 Bxc5 (36... Nc6 $5 37. Bh2 Bxc5 $17) 37. Rh1 Kg6 38. Rh8 Nc6 39. Rg8+ Kf7 40. Rg7+ Ke8 41. Rxd7 Kxd7 42. Bf6 Be7 43. Bxe7 Kxe7 44. Kd3 Kd6 45. Ne2 Kc5 46. Kc3 a5 47. Nc1 Nb4 48. Kd2 b5 49. Ne2 Nc6 50. Kc3 Kd5 51. Kd2 b4 52. Ng3 Ne7 53. Nf1 Ng6 54. Ke2 f4 55. g3 e5 56. Kd3 Nf8 57. exf4 exf4 58. gxf4 gxf4 59. Nd2 Nd7 60. Ne4 Ne5+ 61. Ke2 Kd4 62. Nd6 Nd7 63. Nb7 Kd5 64. Nxa5 Nc5 65. Kd1 Kd4 66. Kd2 Kd5 67. Kd1 Kd4 68. Kd2 Kd5 1/2-1/2

[Event "Czech Extraliga 2023-24"]
[Site "Czech Republic"]
[Date "2024.02.11"]
[Round "8.4"]
[White "Volosin, Leon"]
[Black "Petr, Martin"]
[Result "1/2-1/2"]
[ECO "D02"]
[WhiteElo "2400"]
[BlackElo "2468"]
[Annotator "TA"]
[PlyCount "78"]
[EventDate "2023.10.14"]
[EventCountry "CZE"]
[SourceTitle "playchess.com"]
[Source "ChessBase"]
[SourceQuality "1"]
[TimeControl "40/5400+30:1800+30"]

{[%evp 9,78,12,18,12,18,21,20,0,2,0,0,0,0,-15,0,0,17,0,8,8,5,9,0,-7,0,0,0,0,12,16,19,14,9,14,26,37,29,25,66,0,0,0,0,0,0,0,0,0,0,0,0,0,0,0,0,0,0,-9,0,0,0,0,0,0,0,0,0,0,0,0,0]} 1. d4 {[%emt 0:00:02]} Nf6 {[%emt 0:00:06]} 2. Nf3 {[%emt 0:00:40]} g6 {[%emt 0:00:05]} 3. Nbd2 {[%emt 0:02:32]} d5 {[%emt 0:00:05]} 4. e3 {[%emt 0:00:33]} Bg7 {[%emt 0:00:53]} 5. b4 {[%emt 0:00:15]} a5 {[%emt 0:00:18]} 6. b5 {[%emt 0:00:06]} c5 {[%emt 0:00:05]} 7. bxc6 {[%emt 0:00:21]} Nxc6 {[%emt 0:00:09]} 8. c4 {[%emt 0:04:10]} O-O {[%emt 0:03:34]} 9. cxd5 {[%emt 0:03:16]} Nxd5 {[%emt 0:02:39] [#] ...e5 is the strong threat.} 10. Bb2 {[%emt 0:00:19]} a4 {[%emt 0:04:12] White must now prevent ...a3.} 11. a3 {[%emt 0:04:27]} Bd7 {[%emt 0:06:40][%cal Bc8d7,Bd7b5,Bb5c4][%mdl 32]} 12. Bc4 {[%emt 0:09:51]} Nb6 {[%emt 0:01:15]} 13. Ba2 {[%emt 0:13:08]} Na5 {[%emt 0:03:19]} 14. O-O {[%emt 0:02:37]} Bb5 {[%emt 0:00:09] Repels Qe2} 15. Re1 {[%emt 0:00:02]} Nac4 {[%emt 0:08:53]} 16. Nxc4 {[%emt 0:01:30]} Nxc4 {[%emt 0:01:46]} 17. Bxc4 {[%emt 0:02:02]} Bxc4 {[%emt 0:00:05]} 18. Bc3 {[%emt 0:04:16]} Qd5 {[%emt 0:22:22]} 19. Bb4 {[%emt 0:03:06]} Rfe8 {[%emt 0:00:08]} 20. Rc1 {[%emt 0:00:51]} b5 {[%emt 0:00:54]} 21. Nd2 {[%emt 0:09:42]} e6 {[%emt 0:03:30]} 22. Nxc4 {[%emt 0:15:35]} bxc4 {[%emt 0:00:03]} 23. Qe2 {[%emt 0:00:19]} Rec8 {[%emt 0:05:06]} 24. Rc2 {[%emt 0:01:32]} (24. Bc5 $14) 24... Bf8 $11 {[%emt 0:01:10] The position is equal.} 25. Bxf8 {[%emt 0:02:57]} Kxf8 {[%emt 0:00:03]} 26. Rec1 {[%emt 0:00:41][%cal Rc2c4]} Rab8 {[%emt 0:05:44][%cal Oc4c3]} 27. h3 {[%emt 0:09:10][%cal Rc2c4]} (27. Rxc4 $2 {loses.} Qxc4 28. Qxc4 Rxc4 $19) 27... Rb3 {[%emt 0:05:47]} 28. Rxc4 {[%emt 0:00:32]} Rxc4 {[%emt 0:00:05]} 29. Qxc4 {[%emt 0:00:06]} Qxc4 {[%emt 0:00:04]} 30. Rxc4 {[%emt 0:00:05]} Rxa3 {[%emt 0:00:05][%mdl 4096] Endgame. KR-KR} 31. Rc8+ {[%emt 0:00:18]} Ke7 {[%emt 0:00:26]} 32. Rc7+ {[%emt 0:00:32]} Kf6 {[%emt 0:00:36]} 33. Ra7 {[%emt 0:00:05]} g5 {[%emt 0:04:55]} 34. g4 {[%emt 0:00:59]} Ra1+ {[%emt 0:01:10]} 35. Kg2 {[%emt 0:00:06]} a3 {[%emt 0:00:01]} 36. Kf3 {[%emt 0:00:48]} Ra2 {[%emt 0:04:44]} 37. Kg2 {[%emt 0:00:11]} Kg6 {[%emt 0:00:45]} 38. Ra6 {[%emt 0:00:26]} Kg7 {[%emt 0:01:15]} 39. Ra7 {[%emt 0:00:13]} Kg6 {[%emt 0:00:33] Weighted Error Value: White=0.06 (flawless) /Black=0.05 (flawless) .  Mistake:       	White=1     	---        Inaccurate:     	---       	Black=1      OK:         	White=14    	Black=10     Best:        	White=2     	---} 1/2-1/2

[Event "Czech Extraliga 2023-24"]
[Site "Czech Republic"]
[Date "2024.02.11"]
[Round "8.5"]
[White "Polak, Tomas"]
[Black "Ftacnik, Lubomir"]
[Result "1/2-1/2"]
[ECO "E83"]
[WhiteElo "2525"]
[BlackElo "2438"]
[Annotator "TA"]
[PlyCount "102"]
[EventDate "2023.10.14"]
[EventCountry "CZE"]
[SourceTitle "playchess.com"]
[Source "ChessBase"]
[SourceQuality "1"]
[TimeControl "40/5400+30:1800+30"]

{[%evp 20,102,43,38,40,37,35,31,24,27,33,28,29,23,81,81,82,77,85,84,96,84,92,90,102,79,87,84,99,68,65,51,63,41,66,41,67,34,33,33,38,38,43,43,43,31,31,31,38,38,38,31,31,31,34,0,0,0,15,6,33,8,27,27,30,20,25,8,6,8,8,4,4,8,9,0,0,0,0,0,0,0,0,0,0]} 1. d4 {[%emt 0:00:09]} Nf6 {[%emt 0:00:09]} 2. c4 {[%emt 0:00:24]} g6 {[%emt 0:00:08]} 3. Bg5 {[%emt 0:00:23]} Ne4 {[%emt 0:04:47]} 4. Bf4 {[%emt 0:00:30]} Bg7 {[%emt 0:00:35]} 5. f3 {[%emt 0:01:40]} Nf6 {[%emt 0:00:11]} 6. e4 {[%emt 0:01:22]} d6 {[%emt 0:00:18]} 7. Nc3 {[%emt 0:00:49]} O-O {[%emt 0:00:59]} 8. Be3 {[%emt 0:13:49]} Nc6 {[%emt 0:07:06][%cal Bb8c6,Bc6d4,Bd4e2][%mdl 32]} 9. Nge2 {[%emt 0:06:43]} a6 {[%emt 0:00:47]} 10. Qd2 {[%emt 0:08:19]} Bd7 {[%emt 0:05:00]} 11. Nc1 {[%emt 0:02:11]} e5 {[%emt 0:12:22] [#] Threatens to win with ...exd4.} 12. d5 {[%emt 0:00:20]} Nd4 {[%emt 0:00:54]} 13. N1e2 {[%emt 0:01:01]} Nxe2 $1 {[%emt 0:03:17] White is slightly better.} 14. Bxe2 {[%emt 0:00:13]} Nh5 {[%emt 0:01:00]} 15. g3 {[%emt 0:08:44][%cal Bg2g3,Bg3g4][%mdl 32]} f5 {[%emt 0:02:01]} 16. O-O-O {[%emt 0:04:23]} f4 {[%emt 0:05:44]} (16... Qe7 $11) 17. Bf2 $16 {[%emt 0:00:23]} b6 {[%emt 0:08:26]} 18. g4 {[%emt 0:07:54]} Nf6 {[%emt 0:00:10]} 19. h4 {[%emt 0:01:15]} Rf7 {[%emt 0:16:04][%cal Bf8f7,Bf7e7,Be7e8,Be8b8][%mdl 32]} 20. Kb1 {[%emt 0:04:51]} Bf8 {[%emt 0:00:54]} 21. Rc1 {[%emt 0:02:10][%cal Bd1c1,Bc1c2,Bc2a2][%mdl 32]} Re7 {[%emt 0:04:28]} 22. a3 {[%emt 0:05:51]} Re8 {[%emt 0:01:39]} 23. Rc2 {[%emt 0:03:17]} Qe7 {[%emt 0:01:07]} 24. Rhc1 {[%emt 0:01:15][%cal Bh1c1,Bc1c2,Bc2b2][%mdl 32]} Reb8 {[%emt 0:00:56]} 25. b4 {[%emt 0:01:19]} a5 {[%emt 0:07:19]} 26. Ra2 {[%emt 0:03:19]} Qd8 {[%emt 0:03:40]} 27. Rcc2 {[%emt 0:01:29]} Be7 {[%emt 0:00:17]} 28. Rcb2 {[%emt 0:01:26]} Ne8 {[%emt 0:01:43]} 29. Qe1 $1 {[%emt 0:00:29]} axb4 {[%emt 0:02:39]} 30. axb4 {[%emt 0:01:39]} Rxa2 {[%emt 0:00:07]} 31. Rxa2 {[%emt 0:00:14]} Ra8 {[%emt 0:00:14]} 32. Rxa8 {[%emt 0:01:11]} Qxa8 {[%emt 0:00:01]} 33. Kb2 {[%emt 0:00:08]} Qd8 {[%emt 0:00:42]} 34. Bd1 {[%emt 0:01:32]} Qa8 {[%emt 0:06:10] Prevents Ba4.} 35. Bb3 {[%emt 0:01:26][%cal Oc4c5]} Kf8 {[%emt 0:00:06]} 36. Qh1 {[%emt 0:02:12]} h6 {[%emt 0:02:39]} 37. h5 {[%emt 0:01:20]} gxh5 {[%emt 0:01:03]} 38. Qxh5 {[%emt 0:00:39]} Bg5 {[%emt 0:00:44]} 39. Qh1 {[%emt 0:02:15]} Nf6 {[%emt 0:01:44]} 40. Qd1 {[%emt 0:01:38]} Qa6 {[%emt 0:00:35]} 41. c5 {[%emt 0:10:33]} bxc5 {[%emt 0:02:46]} 42. bxc5 {[%emt 0:00:12]} Bb5 {[%emt 0:01:37]} 43. Qa1 {[%emt 0:10:33]} Qxa1+ {[%emt 0:03:15] The position is equal.} 44. Kxa1 {[%emt 0:00:07]} Bf1 {[%emt 0:00:05]} 45. Bd1 {[%emt 0:01:27]} dxc5 {[%emt 0:12:33]} 46. Bxc5+ {[%emt 0:01:15]} Ke8 {[%emt 0:00:02]} 47. Be2 {[%emt 0:05:49]} Bxe2 {[%emt 0:02:30]} 48. Nxe2 {[%emt 0:00:09]} h5 {[%emt 0:00:13]} 49. gxh5 {[%emt 0:00:11]} Nxh5 {[%emt 0:00:08]} 50. Bf2 {[%emt 0:06:45]} Kd7 {[%emt 0:00:57]} 51. Kb2 {[%emt 0:01:10]} c6 {[%emt 0:00:10] Weighted Error Value: White=0.09 (flawless) /Black=0.07 (flawless) .  Mistake:       	---       	Black=1      Inaccurate:     	White=3     	Black=2      OK:         	White=8     	Black=17     Best:        	White=1     	Black=2      Strong:       	White=1     	Black=1} 1/2-1/2

[Event "Czech Extraliga 2023-24"]
[Site "Czech Republic"]
[Date "2024.02.11"]
[Round "8.5"]
[White "Haba, Petr"]
[Black "Blahynka, Martin"]
[Result "1/2-1/2"]
[ECO "E02"]
[WhiteElo "2437"]
[BlackElo "2383"]
[Annotator "RC"]
[PlyCount "106"]
[EventDate "2023.10.14"]
[EventCountry "CZE"]
[SourceTitle "playchess.com"]
[Source "ChessBase"]
[SourceQuality "1"]
[TimeControl "40/5400+30:1800+30"]

1. d4 {[%emt 0:00:15]} Nf6 {[%emt 0:00:09]} 2. c4 {[%emt 0:00:06]} e6 {[%emt 0:00:07]} 3. g3 {[%emt 0:00:10]} d5 {[%emt 0:00:29]} 4. Bg2 {[%emt 0:00:06]} Be7 {[%emt 0:00:09]} 5. Nf3 {[%emt 0:00:08]} O-O {[%emt 0:00:06]} 6. O-O {[%emt 0:00:10]} dxc4 {[%emt 0:00:13]} 7. Qa4 {[%emt 0:00:47]} Bd7 {[%emt 0:08:01]} 8. Qxc4 {[%emt 0:01:05]} Bc6 {[%emt 0:00:08]} 9. Nc3 {[%emt 0:01:44]} Nbd7 {[%emt 0:00:36]} 10. Qd3 {[%emt 0:06:14]} Bb4 {[%emt 0:13:51]} 11. Bf4 {[%emt 0:11:44]} Bxc3 {[%emt 0:03:59]} 12. Qxc3 {[%emt 0:01:30]} Nd5 {[%emt 0:00:40]} 13. Qd2 {[%emt 0:00:07]} Qe7 {[%emt 0:18:38]} 14. Rac1 {[%emt 0:04:00]} Nxf4 {[%emt 0:11:24]} 15. Qxf4 {[%emt 0:01:09]} Qd6 {[%emt 0:00:08]} 16. Qxd6 {[%emt 0:08:37]} cxd6 {[%emt 0:00:06]} 17. Nd2 {[%emt 0:00:04]} d5 {[%emt 0:05:57]} 18. Nb3 {[%emt 0:05:23]} a5 {[%emt 0:02:44]} 19. Nc5 {[%emt 0:01:54]} Rfc8 {[%emt 0:08:49]} 20. Nxd7 {[%emt 0:09:27]} Bxd7 {[%emt 0:00:05]} 21. e4 {[%emt 0:00:06]} dxe4 {[%emt 0:06:28]} 22. Bxe4 {[%emt 0:00:10]} Rxc1 {[%emt 0:00:10]} 23. Rxc1 {[%emt 0:00:05]} Rc8 {[%emt 0:00:05]} 24. Rxc8+ {[%emt 0:04:41]} Bxc8 {[%emt 0:00:08]} 25. d5 {[%emt 0:00:14]} f5 {[%emt 0:01:09]} 26. Bg2 {[%emt 0:00:44]} Kf7 {[%emt 0:05:07]} 27. dxe6+ {[%emt 0:02:03]} Kxe6 {[%emt 0:01:02]} 28. f4 {[%emt 0:00:56]} Kd6 {[%emt 0:00:53]} 29. Kf2 {[%emt 0:00:13]} Kc5 {[%emt 0:00:42]} 30. Ke3 {[%emt 0:00:04]} b5 {[%emt 0:05:38]} 31. Bf1 {[%emt 0:13:06]} Kb4 {[%emt 0:05:21]} 32. Kd4 {[%emt 0:06:33]} Be6 {[%emt 0:00:04]} 33. a3+ {[%emt 0:00:03]} Kb3 {[%emt 0:00:03]} 34. Kc5 {[%emt 0:00:04]} b4 {[%emt 0:02:45]} 35. axb4 {[%emt 0:03:18]} axb4 {[%emt 0:00:04]} 36. Bb5 {[%emt 0:02:49]} Bf7 {[%emt 0:01:58]} 37. Bd7 {[%emt 0:04:19]} g6 {[%emt 0:00:03]} 38. Bb5 {[%emt 0:00:03]} Be6 {[%emt 0:00:31]} 39. Ba6 {[%emt 0:01:11]} Bf7 {[%emt 0:00:36]} 40. Bb5 {[%emt 0:00:07]} Be6 {[%emt 0:00:04]} 41. Ba6 {[%emt 0:30:03]} h6 {[%emt 0:10:01]} 42. h4 {[%emt 0:00:00]} Bg8 {[%emt 0:11:17]} 43. Bc8 {[%emt 0:00:00]} Kxb2 {[%emt 0:04:56]} 44. Kxb4 {[%emt 0:00:00]} Kc2 {[%emt 0:04:24]} 45. h5 {[%emt 0:00:00]} Bh7 {[%emt 0:01:55]} 46. hxg6 {[%emt 0:00:23]} Bxg6 {[%emt 0:00:04]} 47. Kc4 {[%emt 0:00:08]} Kd2 {[%emt 0:00:04]} 48. Kd4 {[%emt 0:00:03]} Ke2 {[%emt 0:00:04]} 49. Ke5 {[%emt 0:02:37]} Kf3 {[%emt 0:00:13]} 50. Bxf5 {[%emt 0:00:05]} Bxf5 {[%emt 0:00:04]} 51. Kxf5 {[%emt 0:00:04]} Kxg3 {[%emt 0:00:05]} 52. Kg6 {[%emt 0:00:10]} Kxf4 {[%emt 0:00:04]} 53. Kxh6 {[%emt 0:00:03]} Ke5 {[%emt 0:04:39]} 1/2-1/2

[Event "Czech Extraliga 2023-24"]
[Site "Czech Republic"]
[Date "2024.02.11"]
[Round "8.5"]
[White "UNI6 Rydl Jiri FM"]
[Black "NOV8 Shirov Alexei GM"]
[Result "1/2-1/2"]
[ECO "A11"]
[WhiteElo "2404"]
[BlackElo "2655"]
[Annotator "TA"]
[PlyCount "67"]
[EventDate "2023.10.14"]
[EventCountry "CZE"]
[SourceTitle "playchess.com"]
[Source "ChessBase"]
[SourceQuality "1"]
[TimeControl "40/5400+30:1800+30"]

{[%evp 9,67,18,12,10,18,0,30,22,37,35,52,40,59,43,95,84,86,89,291,189,295,274,353,354,621,627,615,610,683,668,667,678,633,656,718,664,875,920,29989,29990,29989,0,0,-66,0,0,0,-241,0,0,0,0,0,0,0,0,0,0,0,0]} 1. c4 {[%emt 0:00:48]} c6 {[%emt 0:03:11]} 2. Nf3 {[%emt 0:00:18]} d5 {[%emt 0:00:09]} 3. g3 {[%emt 0:01:59]} dxc4 {[%emt 0:09:06]} 4. Bg2 {[%emt 0:00:41]} Nd7 {[%emt 0:00:23]} 5. Na3 {[%emt 0:06:49]} e5 {[%emt 0:03:32][%cal Be7e5,Be5e4,Be4d3][%mdl 32]} 6. Nxc4 {[%emt 0:00:31]} e4 {[%emt 0:00:19]} 7. Nh4 {[%emt 0:10:06]} Ndf6 {[%emt 0:07:30] White must now prevent ...g5.} 8. d3 {[%emt 0:10:30] White has an edge.} Bb4+ {[%emt 0:02:36]} 9. Bd2 {[%emt 0:01:17]} Bxd2+ {[%emt 0:00:06]} 10. Qxd2 {[%emt 0:00:09]} exd3 $1 {[%emt 0:00:10]} 11. O-O-O {[%emt 0:07:05]} Be6 {[%emt 0:18:07]} (11... Ne7 $14) 12. Qb4 $16 {[%emt 0:04:07][%cal Oh4f5] And now Nf5! would win.} Bxc4 {[%emt 0:17:44]} 13. Nf5 {[%emt 0:03:39]} Ba6 $2 {[%emt 0:24:19]} (13... Bxa2 $2 14. Nxg7+ (14. Qxb7 Bd5 $17) 14... Kd7 15. Qxb7+ (15. Rxd3+ Bd5 $18) 15... Qc7 16. Bxc6+ (16. Qxa8 Be6 $18) 16... Kd8 17. Rxd3+ (17. Qxa8+ Ke7 $18) 17... Nd5 18. Qxa8+ $18) (13... Ne7 $16 14. Nd6+ Kf8) 14. Nxg7+ $18 {[%emt 0:02:43]} Kd7 {[%emt 0:00:04][%cal Be8d7,Bd7d6,Bd6c5][%mdl 32]} 15. Rxd3+ {[%emt 0:00:37]} Bxd3 {[%emt 0:00:12]} 16. Qxb7+ {[%emt 0:00:15]} Qc7 $2 {[%emt 0:00:24]} (16... Kd6) 17. Bh3+ {[%emt 0:01:16]} Kd6 {[%emt 0:00:18]} 18. Qxa8 {[%emt 0:02:59]} Be4 {[%emt 0:06:37]} 19. Qf8+ {[%emt 0:06:13]} Qe7 {[%emt 0:00:11]} 20. Qb8+ {[%emt 0:00:05]} (20. Rd1+ Kc7 (20... Kc5 $2 21. Qb8 $18) 21. Qc8+ Kb6 $11) 20... Kc5 {[%emt 0:00:19][%cal Og8h6]} 21. f3 {[%emt 0:09:46]} Bg6 {[%emt 0:01:11]} 22. e4 {[%emt 0:01:06]} Nxe4 {[%emt 0:02:18][%cal Bf6e4,Be4d6,Bd6b5][%mdl 32] ...Nf2 is the strong threat.} 23. Rd1 {[%emt 0:06:04][%cal Og7e6] Intending Ne6+! and mate.} (23. fxe4 Qg5+ 24. Kd1 Bxe4 25. Qxa7+ Kb4 26. Qd4+ Ka5 27. Qxe4 Nf6 28. Qxc6 (28. Qf5+ Qxf5 29. Nxf5 Rf8 $18) 28... Rd8+ 29. Kc2 Rd2+ 30. Kb3 (30. Kb1 Qe5 $18) 30... Qe3+ 31. Qc3+ Qxc3+ 32. bxc3 Kb6) 23... Nd6 {[%emt 0:01:26] [#]} 24. Ne6+ $1 {[%emt 0:07:44][%mdl 512]} fxe6 {[%emt 0:00:07]} 25. Bf1 $2 {[%emt 0:00:35]} (25. b4+ {mates} Kc4 26. Rxd6 Qg5+ 27. f4 Qd5 28. Rxd5 (28. Bxe6 Nf6 $18) 28... cxd5 29. Kd2 (29. Qxa7 Kd3 30. Qf2 d4 31. Bf1+ Ke4 32. Qc2+ Kd5 33. Qc5+ Ke4 34. Qe5+ Kf3 35. Qe2#) 29... h6 30. Bf1+ (30. Qxa7 Kb5 31. Qb7+ Ka4 32. Qa6+ Kxb4 33. Qb6+ Ka4 34. Qb3+ Ka5 35. Bf1 Bd3 36. Bxd3 h5 37. Qb5#) 30... Bd3 31. Bxd3+ Kd4 32. Qxa7#) 25... Nb5 $1 $11 {[%emt 0:01:20] Strongly threatening ...Qc7.} (25... a5 $2 26. Qb3 $18) 26. a4 {[%emt 0:08:27]} ({Better is} 26. a3 $11 a5 (26... Qg5+ $2 27. f4 $18) 27. Bxb5 cxb5 28. Rd8 (28. Qe5+ Kc6 $19)) 26... Qc7 {[%emt 0:00:21]} ({Don't blunder} 26... Qg5+ $2 27. f4 Qe7 (27... Qf5 $2 28. Bd3 $18) 28. axb5 $18) (26... Nf6 $1 $15 27. Qxh8 Nd4) 27. Qf8+ {[%emt 0:02:12]} Kb6 {[%emt 0:00:39][%cal Ob6b7] ...Kb7! would now be deadly.} 28. Rd8 $2 {[%emt 0:02:26] [#]} (28. Rd2 $1 $11 {and White has nothing to worry.}) 28... Qe5 $2 {[%emt 0:00:40]} 29. Rb8+ $1 {[%emt 0:03:12] The position is equal.} Ka5 {[%emt 0:00:08][%cal Re5e1]} 30. Qd8+ {[%emt 0:00:48]} Kxa4 {[%emt 0:00:07]} ({Worse is} 30... Nc7 31. Qd2+) 31. Qd1+ {[%emt 0:00:48]} Ka5 {[%emt 0:00:50]} 32. Qd8+ {[%emt 0:00:37]} Ka4 $1 {[%emt 0:01:19]} ({Not} 32... Kb4 $2 33. Qd2+ Ka4 34. Bc4 $18) 33. Qd1+ {[%emt 0:00:14]} Ka5 {[%emt 0:00:31]} 34. Qd8+ {[%emt 0:00:37] Blacks defense is rewarded with a draw.   Weighted Error Value: White=0.25 (precise) /Black=0.72.  Loses game:     	White=1     	Black=1      Missed win:     	---       	Black=1      Mistake:       	---       	Black=3      Inaccurate:     	---       	Black=2      OK:         	White=10    	Black=5      Best:        	White=6     	Black=2      Strong:       	White=1     	Black=2} 1/2-1/2

[Event "Czech Extraliga 2023-24"]
[Site "Czech Republic"]
[Date "2024.02.11"]
[Round "8.5"]
[White "Nemec, Jachym"]
[Black "Vykouk, Jan"]
[Result "1/2-1/2"]
[ECO "E73"]
[WhiteElo "2393"]
[BlackElo "2493"]
[Annotator "RC"]
[PlyCount "182"]
[EventDate "2023.10.14"]
[EventCountry "CZE"]
[SourceTitle "playchess.com"]
[Source "ChessBase"]
[SourceQuality "1"]
[TimeControl "40/5400+30:1800+30"]

1. d4 {[%emt 0:00:03]} Nf6 {[%emt 0:00:06]} 2. c4 {[%emt 0:00:05]} g6 {[%emt 0:00:05]} 3. Nc3 {[%emt 0:00:14]} Bg7 {[%emt 0:00:06]} 4. e4 {[%emt 0:00:07]} d6 {[%emt 0:00:07]} 5. Be2 {[%emt 0:00:23]} O-O {[%emt 0:00:33]} 6. h4 {[%emt 0:00:24]} c5 {[%emt 0:04:10]} 7. d5 {[%emt 0:00:59]} e6 {[%emt 0:01:53]} 8. h5 {[%emt 0:00:39]} exd5 {[%emt 0:00:19]} 9. exd5 {[%emt 0:00:13]} Re8 {[%emt 0:00:30]} 10. h6 {[%emt 0:00:53]} Bh8 {[%emt 0:00:33]} 11. Bg5 {[%emt 0:00:15]} Qb6 {[%emt 0:02:46]} 12. b3 {[%emt 0:00:13]} Nbd7 {[%emt 0:05:21]} 13. Kf1 {[%emt 0:00:42]} Ne4 {[%emt 0:03:42]} 14. Nxe4 {[%emt 0:00:18]} Rxe4 {[%emt 0:00:05]} 15. Nf3 {[%emt 0:00:13]} Re8 {[%emt 0:01:04]} 16. Rc1 {[%emt 0:01:56]} Qc7 {[%emt 0:03:14]} 17. g3 {[%emt 0:01:33]} Nf6 {[%emt 0:01:25]} 18. Nd2 {[%emt 0:02:54]} a6 {[%emt 0:01:46]} 19. a4 {[%emt 0:05:38]} Bd7 {[%emt 0:00:59]} 20. Rh4 {[%emt 0:01:30]} Re5 {[%emt 0:00:47]} 21. Bf4 {[%emt 0:23:45]} g5 {[%emt 0:04:10]} 22. Bxe5 {[%emt 0:00:50]} gxh4 {[%emt 0:02:39]} 23. Bf4 {[%emt 0:14:21]} hxg3 {[%emt 0:00:31]} 24. Bxg3 {[%emt 0:01:22]} Bf5 {[%emt 0:00:53]} 25. Bf3 {[%emt 0:03:36]} Re8 {[%emt 0:01:13]} 26. Kg1 {[%emt 0:06:19]} Qe7 {[%emt 0:02:11]} 27. Qf1 {[%emt 0:01:13]} Nd7 {[%emt 0:00:55]} 28. Qg2 {[%emt 0:02:39]} Bg6 {[%emt 0:01:17]} 29. Rf1 {[%emt 0:08:16]} Ne5 {[%emt 0:10:00]} 30. Be4 {[%emt 0:01:27]} Kf8 {[%emt 0:08:42]} 31. Bxg6 {[%emt 0:01:34]} hxg6 {[%emt 0:07:30]} 32. Re1 {[%emt 0:02:06]} Qd8 {[%emt 0:00:40]} 33. Re3 {[%emt 0:05:13]} Kg8 {[%emt 0:02:47]} 34. Bh2 {[%emt 0:02:09]} Kh7 {[%emt 0:12:00]} 35. Ne4 {[%emt 0:01:23]} f6 {[%emt 0:01:46]} 36. Bxe5 {[%emt 0:07:50]} Rxe5 {[%emt 0:00:29]} 37. f4 {[%emt 0:00:07]} Re7 {[%emt 0:04:46]} 38. Qe2 {[%emt 0:00:27]} Rf7 {[%emt 0:00:46]} 39. Nd2 {[%emt 0:02:27]} f5 {[%emt 0:06:02]} 40. Re6 {[%emt 0:03:31]} Bd4+ {[%emt 0:01:38]} 41. Kg2 {[%emt 0:07:34]} Qh4 {[%emt 0:00:47]} 42. Qf3 {[%emt 0:04:33]} Kxh6 {[%emt 0:07:29]} 43. Qg3 {[%emt 0:02:04]} Qxg3+ {[%emt 0:01:52]} 44. Kxg3 {[%emt 0:00:07]} Rd7 {[%emt 0:04:54]} 45. Nf3 {[%emt 0:00:04]} Bc3 {[%emt 0:00:22]} 46. Ng5 {[%emt 0:02:58]} Kg7 {[%emt 0:01:49]} 47. Re8 {[%emt 0:00:28]} Bf6 {[%emt 0:01:08]} 48. Ne6+ {[%emt 0:00:05]} Kf7 {[%emt 0:00:41]} 49. Rf8+ {[%emt 0:00:24]} Ke7 {[%emt 0:00:02]} 50. Rb8 {[%emt 0:01:25]} Kf7 {[%emt 0:03:02]} 51. Kf3 {[%emt 0:01:41]} Be7 {[%emt 0:02:19]} 52. Ke2 {[%emt 0:01:18]} Bf6 {[%emt 0:00:08]} 53. Kd3 {[%emt 0:00:36]} Be7 {[%emt 0:01:59]} 54. Kd2 {[%emt 0:01:25]} Bf6 {[%emt 0:00:36]} 55. Kc2 {[%emt 0:00:05]} Be7 {[%emt 0:00:34]} 56. Kb1 {[%emt 0:00:48]} Bf6 {[%emt 0:00:19]} 57. Ka2 {[%emt 0:00:38]} Be7 {[%emt 0:04:26]} 58. Ka3 {[%emt 0:00:12]} Bf6 {[%emt 0:06:44]} 59. b4 {[%emt 0:00:39]} cxb4+ {[%emt 0:00:35]} 60. Kxb4 {[%emt 0:00:05]} Be7 {[%emt 0:01:04]} 61. Ka5 {[%emt 0:00:57]} Bh4 {[%emt 0:00:09]} 62. Kb4 {[%emt 0:04:25]} Be1+ {[%emt 0:00:14]} 63. Kb3 {[%emt 0:00:09]} Bh4 {[%emt 0:02:30]} 64. Rf8+ {[%emt 0:00:35]} Ke7 {[%emt 0:00:06]} 65. Rh8 {[%emt 0:00:06]} Bf6 {[%emt 0:00:45]} 66. Rb8 {[%emt 0:00:05]} Kf7 {[%emt 0:00:31]} 67. Rc8 {[%emt 0:02:14]} Be7 {[%emt 0:00:47]} 68. Kb4 {[%emt 0:00:45]} Bh4 {[%emt 0:00:35]} 69. Rf8+ {[%emt 0:02:12]} Ke7 {[%emt 0:00:06]} 70. Rh8 {[%emt 0:00:04]} Be1+ {[%emt 0:01:44]} 71. Kb3 {[%emt 0:00:01]} Kf6 {[%emt 0:00:59]} 72. Rh1 {[%emt 0:02:05]} Bd2 {[%emt 0:00:46]} 73. Kc2 {[%emt 0:00:10]} Be3 {[%emt 0:00:30]} 74. Kd3 {[%emt 0:00:06]} Bf2 {[%emt 0:00:25]} 75. Rh2 {[%emt 0:00:17]} Bg1 {[%emt 0:01:04]} 76. Rg2 {[%emt 0:00:09]} Ba7 {[%emt 0:00:11]} 77. Rh2 {[%emt 0:00:27]} Bg1 {[%emt 0:00:04]} 78. Rh8 {[%emt 0:01:18]} Bb6 {[%emt 0:00:35]} 79. Kc3 {[%emt 0:01:38]} Ba5+ {[%emt 0:00:22]} 80. Kb3 {[%emt 0:00:49]} Bd2 {[%emt 0:00:14]} 81. Rf8+ {[%emt 0:02:16]} Ke7 {[%emt 0:00:25]} 82. Rb8 {[%emt 0:00:18]} Kf6 {[%emt 0:00:24]} 83. Kc2 {[%emt 0:02:07]} Ba5 {[%emt 0:00:24]} 84. Rh8 {[%emt 0:00:29]} Be1 {[%emt 0:00:22]} 85. Kd3 {[%emt 0:00:20]} Bf2 {[%emt 0:00:29]} 86. Rf8+ {[%emt 0:00:38]} Ke7 {[%emt 0:00:23]} 87. Rg8 {[%emt 0:00:17]} Kf6 {[%emt 0:00:17]} 88. Rh8 {[%emt 0:01:01]} Bb6 {[%emt 0:00:22]} 89. Rh1 {[%emt 0:00:52]} Bf2 {[%emt 0:00:09]} 90. Rf1 {[%emt 0:00:47]} Ba7 {[%emt 0:00:39]} 91. Rh1 {[%emt 0:00:29]} Bf2 {[%emt 0:00:04]} 1/2-1/2